bitfinex/quotes_SOLUSD_20251009
["timestamp","ask_amount","ask_price","bid_price","bid_amount"]
[1760001729895,0.66,221.24,221.2,5.9007623]
[1760001730394,0.66,221.24,221.18,5.90115266]
[1760001731821,0.3,221.23,221.18,5.90115266]
[1760001732118,0.96,221.23,221.18,5.20111196]
[1760001732316,0.96,221.23,221.18,4.52111196]
[1760001732927,0.3,221.23,221.18,5.20111196]
[1760001733416,134.8,221.25,221.19,2.0600407]
[1760001733619,0.66,221.27,221.19,2.0600407]
[1760001733839,0.66,221.27,221.18,15.82412308]
[1760001733840,3.75923508,221.38,221.26,1.3800407]
[1760001733998,0.2,221.41,221.33,1.3800407]
[1760001734200,0.2,221.41,221.35,1.3800407]
[1760001734399,0.66,221.4,221.33,1.3800407]
[1760001734701,1.3800407,221.37,221.29,0.68]
[1760001734919,0.2,221.41,221.27,4.51925959]
[1760001734920,1.3800407,221.35,221.27,1.3800407]
[1760001735127,1.3800407,221.33,221.26,20.8]
[1760001735419,0.66,221.32,221.26,20.8]
[1760001735803,0.66,221.32,221.25,2.0600407]
[1760001735996,0.66,221.32,221.25,6.57980626]
[1760001736200,6.55849625,221.32,221.25,0.68]
[1760001736506,6.55849625,221.32,221.25,5.19975612]
[1760001737135,4.51711988,221.38,221.28,1.3800407]
[1760001737428,4.51711988,221.38,221.3,1.3800407]
[1760001737429,1.3800407,221.37,221.3,1.3800407]
[1760001737723,0.66,221.38,221.32,1.3800407]
[1760001737922,4.51691771,221.39,221.32,1.3800407]
[1760001738124,0.66,221.4,221.34,1.3800407]
[1760001738316,0.2,221.41,221.36,1.3800407]
[1760001738516,0.2,221.41,221.39,1.3800407]
[1760001738912,0.2,221.41,221.4,0.68]
[1760001739523,0.2,221.41,221.4,1.3800407]
[1760001739904,0.2,221.41,221.39,1.3800407]
[1760001740107,0.2,221.41,221.4,4.51671183]
[1760001740320,0.2,221.41,221.39,1.3800407]
[1760001740925,0.2,221.41,221.4,0.68]
[1760001741140,0.2,221.41,221.4,21.48]
[1760001741348,0.2,221.41,221.4,32.35647521]
[1760001741503,0.2,221.42,221.41,1.3800407]
[1760001741704,0.2,221.42,221.41,2.0100407]
[1760001741903,0.2,221.42,221.4,22.1800407]
[1760001742100,0.2,221.42,221.41,5.14650783]
[1760001742814,0.2,221.42,221.41,0.63]
[1760001743016,0.2,221.42,221.41,5.14650783]
[1760001743326,0.2,221.42,221.41,4.51650783]
[1760001743509,0.2,221.42,221.4,22.1800407]
[1760001743911,0.2,221.42,221.4,26.69673573]
[1760001744120,0.2,221.42,221.4,27.32673573]
[1760001744624,0.2,221.42,221.41,0.63]
[1760001745403,0.2,221.42,221.41,2.0100407]
[1760001745803,0.2,221.42,221.41,4.02255312]
[1760001746410,0.2,221.42,221.41,8.53906095]
[1760001748428,0.2,221.42,221.41,7.90906095]
[1760001748728,0.2,221.42,221.41,19.41553616]
[1760001749112,0.2,221.55,221.41,19.41553616]
[1760001749113,0.2,221.55,221.44,20.8]
[1760001749428,0.92,221.55,221.51,3.39255312]
[1760001749805,0.72,221.54,221.47,10.87647521]
[1760001750008,0.72,221.54,221.51,3.39255312]
[1760001750331,0.72,221.53,221.51,4.51446887]
[1760001750829,0.2,221.55,221.51,4.51446887]
[1760001751010,0.2,221.55,221.52,3.39255312]
[1760001751210,0.92,221.55,221.52,3.39255312]
[1760001751413,0.92,221.55,221.53,3.39255312]
[1760001751927,0.2,221.55,221.52,3.39255312]
[1760001752134,0.72,221.54,221.51,3.39255312]
[1760001752337,0.72,221.53,221.52,20.8]
[1760001752523,0.72,221.53,221.49,25.31468294]
[1760001752834,0.72,221.52,221.48,3.39255312]
[1760001753137,0.72,221.51,221.47,4.51524666]
[1760001753432,0.72,221.5,221.47,7.90779978]
[1760001754024,0.72,221.52,221.47,4.51524666]
[1760001754221,3.59255312,221.55,221.48,3.39255312]
[1760001754447,0.72,221.51,221.48,3.39255312]
[1760001754640,3.59255312,221.55,221.48,3.39255312]
[1760001754944,0.72,221.54,221.49,3.39255312]
[1760001755243,0.72,221.53,221.49,3.39255312]
[1760001755610,0.2,221.55,221.52,3.39255312]
[1760001755828,0.2,221.55,221.53,3.39255312]
[1760001756008,0.2,221.55,221.53,7.90655738]
[1760001756744,0.2,221.55,221.53,4.51400426]
[1760001756939,0.2,221.55,221.53,7.90655738]
[1760001757126,0.2,221.55,221.53,3.39255312]
[1760001757445,0.2,221.55,221.54,3.39255312]
[1760001757624,0.72,221.54,221.52,3.39255312]
[1760001757832,0.72,221.53,221.51,3.39255312]
[1760001758124,0.72,221.52,221.5,3.39255312]
[1760001758515,0.72,221.54,221.51,3.39255312]
[1760001758717,0.72,221.53,221.51,3.39255312]
[1760001759123,0.2,221.55,221.51,3.39255312]
[1760001759334,0.2,221.55,221.5,15.80133217]
[1760001759521,0.2,221.55,221.54,3.39255312]
[1760001760025,0.2,221.55,221.53,20.8]
[1760001760347,0.2,221.55,221.54,3.39255312]
[1760001761125,0.92,221.55,221.44,11.50647521]
[1760001761318,0.92,221.55,221.51,3.39255312]
[1760001761811,0.2,221.55,221.52,3.39255312]
[1760001762013,0.92,221.55,221.53,3.39255312]
[1760001762849,0.72,221.54,221.47,20.8]
[1760001763019,0.72,221.54,221.49,3.39255312]
[1760001763216,0.72,221.53,221.48,20.8]
[1760001763529,0.72,221.52,221.48,20.8]
[1760001763716,0.72,221.52,221.48,24.19255312]
[1760001764242,0.72,221.52,221.49,3.39255312]
[1760001764418,4.71372673,221.55,221.49,3.39255312]
[1760001764419,0.71,221.54,221.49,3.39255312]
[1760001764622,4.71372673,221.55,221.45,0.63]
[1760001764623,0.71,221.53,221.45,0.63]
[1760001764950,0.71,221.53,221.41,0.63]
[1760001765152,0.71,221.53,221.45,3.39255312]
[1760001765452,0.71,221.52,221.45,3.39255312]
[1760001765631,3.39255312,221.53,221.45,3.39255312]
[1760001765835,5.22429638,221.52,221.45,7.90804187]
[1760001766037,0.71,221.51,221.45,4.51548875]
[1760001766237,0.71,221.5,221.45,7.90804187]
[1760001766555,0.71,221.49,221.45,4.51548875]
[1760001766854,0.71,221.51,221.45,4.51548875]
[1760001767356,0.71,221.54,221.48,3.39255312]
[1760001767524,0.2,221.55,221.47,0.63]
[1760001767728,0.71,221.54,221.48,3.39255312]
[1760001767929,5.2240613,221.53,221.48,1.37753884]
[1760001768125,0.71,221.52,221.48,1.37753884]
[1760001768550,4.5140613,221.53,221.48,1.37753884]
[1760001768926,4.5140613,221.53,221.46,4.51533282]
[1760001769227,4.51385754,221.54,221.47,1.37753884]
[1760001769858,4.51385754,221.54,221.47,3.3920726]
[1760001770055,4.51385754,221.54,221.46,3.3920726]
[1760001770554,0.71,221.53,221.47,3.3920726]
[1760001771058,3.5920726,221.55,221.4,10.87647521]
[1760001771059,4.51487651,221.49,221.4,0.69]
[1760001771266,4.51487651,221.49,221.4,3.3920726]
[1760001771267,4.1020726,221.48,221.4,3.3920726]
[1760001771444,0.71,221.47,221.4,3.3920726]
[1760001771934,3.3920726,221.48,221.41,20.8]
[1760001772281,4.1020726,221.46,221.37,3.3920726]
[1760001772423,0.71,221.45,221.38,20.8]
[1760001772920,3.3920726,221.44,221.36,3.3920726]
[1760001773124,4.51630385,221.42,221.36,3.3920726]
[1760001773323,0.71,221.41,221.39,0.5]
[1760001773573,4.1020726,221.4,221.3,4.51875282]
[1760001773776,4.1020726,221.39,221.31,3.3920726]
[1760001773961,0.71,221.38,221.31,5.00439368]
[1760001774578,0.71,221.38,221.32,5.00439368]
[1760001774775,4.51691584,221.39,221.33,5.00439368]
[1760001774986,10.23110502,221.41,221.34,5.00439368]
[1760001775872,0.68,221.48,221.4,5.00439368]
[1760001776059,0.68,221.48,221.43,5.00439368]
[1760001776263,10.87647521,221.46,221.39,5.00439368]
[1760001776574,10.87647521,221.46,221.34,0.66]
[1760001776575,4.51630385,221.42,221.34,25.31781598]
[1760001776879,0.68,221.41,221.35,5.00439368]
[1760001777066,0.68,221.4,221.31,0.66]
[1760001777384,0.68,221.4,221.34,5.00439368]
[1760001777983,20.81145717,221.42,221.31,21.46]
[1760001777984,15.80706349,221.42,221.33,5.00439368]
[1760001778176,5.19693153,221.39,221.33,9.52245697]
[1760001778378,5.19693153,221.39,221.33,0.5]
[1760001778569,5.68439368,221.38,221.33,0.5]
[1760001778877,0.68,221.38,221.33,0.5]
[1760001779081,0.68,221.37,221.33,0.5]
[1760001779265,0.68,221.37,221.33,5.00439368]
[1760001779665,5.19693153,221.39,221.33,5.00439368]
[1760001780467,5.19693153,221.39,221.32,4.51829205]
[1760001780667,5.19693153,221.39,221.33,5.00439368]
[1760001781492,0.68,221.39,221.33,5.00439368]
[1760001781684,5.19693904,221.39,221.32,5.00439368]
[1760001781980,0.68,221.38,221.32,5.00439368]
[1760001782184,0.68,221.37,221.31,5.00439368]
[1760001783095,0.68,221.37,221.32,5.00439368]
[1760001783766,5.19745715,221.37,221.32,5.00439368]
[1760001783963,0.68,221.36,221.32,5.00439368]
[1760001784287,0.68,221.36,221.23,3.80186342]
[1760001784291,0.3,221.29,221.24,0.66]
[1760001784590,0.3,221.28,221.2,11.30168086]
[1760001784791,0.98,221.28,221.22,5.00439368]
[1760001785092,0.3,221.28,221.23,5.00439368]
[1760001785276,0.3,221.28,221.23,5.66439368]
[1760001785472,0.68,221.27,221.22,5.00439368]
[1760001785776,0.3,221.28,221.23,0.66]
[1760001785988,0.3,221.28,221.23,5.66439368]
[1760001786303,0.3,221.28,221.25,5.00439368]
[1760001786469,0.3,221.28,221.27,5.00439368]
[1760001786868,0.3,221.28,221.27,5.66439368]
[1760001787062,0.3,221.28,221.22,15.82130599]
[1760001787063,0.3,221.28,221.23,0.66]
[1760001787300,0.3,221.28,221.25,5.00439368]
[1760001787784,0.3,221.28,221.26,5.66439368]
[1760001787989,4.51821049,221.33,221.26,5.66439368]
[1760001788184,4.51821049,221.33,221.28,5.00439368]
[1760001788390,4.51821049,221.33,221.28,5.66439368]
[1760001788602,0.3,221.34,221.29,5.00439368]
[1760001788901,0.3,221.34,221.32,5.00439368]
[1760001789110,0.3,221.34,221.31,5.00439368]
[1760001789984,0.3,221.34,221.31,9.52293424]
[1760001790379,0.3,221.34,221.31,5.00439368]
[1760001790595,135.1,221.33,221.31,5.00439368]
[1760001790898,135.1,221.33,221.3,5.00439368]
[1760001792201,135.1,221.33,221.3,9.52311148]
[1760001792386,135.1,221.33,221.31,5.00439368]
[1760001793400,0.3,221.32,221.31,5.00439368]
[1760001793792,0.3,221.32,221.31,10.18294232]
[1760001793999,0.68,221.37,221.25,5.00439368]
[1760001794176,140.48439368,221.36,221.29,5.00439368]
[1760001794576,5.00439368,221.33,221.25,5.17977401]
[1760001794819,5.00439368,221.31,221.24,5.00439368]
[1760001795020,5.00439368,221.29,221.22,5.00439368]
[1760001795183,5.68439368,221.3,221.23,25.80439368]
[1760001795486,10.20321023,221.3,221.23,25.80439368]
[1760001795680,5.68439368,221.29,221.22,5.00439368]
[1760001796507,0.68,221.29,221.23,5.00439368]
[1760001797022,134.8,221.31,221.28,5.00439368]
[1760001797321,134.8,221.31,221.2,15.82278481]
[1760001797322,134.8,221.31,221.3,5.00439368]
[1760001797614,5.19773198,221.36,221.3,5.00439368]
[1760001798117,0.68,221.35,221.26,0.66]
[1760001798303,0.68,221.35,221.29,5.00439368]
[1760001799522,5.19786263,221.35,221.29,9.52331596]
[1760001800127,0.68,221.34,221.27,5.00439368]
[1760001800298,0.68,221.34,221.28,5.00439368]
[1760001800619,0.68,221.33,221.28,5.00439368]
[1760001800797,0.68,221.33,221.27,5.00439368]
[1760001800798,0.68,221.32,221.27,5.00439368]
[1760001801121,0.3,221.31,221.27,5.00439368]
[1760001801295,0.3,221.3,221.27,5.00439368]
[1760001801924,0.98,221.3,221.26,5.00439368]
[1760001802231,0.3,221.3,221.26,5.00439368]
[1760001802397,0.3,221.3,221.26,5.66439368]
[1760001803499,0.3,221.3,221.25,5.00439368]
[1760001803903,0.68,221.29,221.25,5.00439368]
[1760001804101,0.68,221.29,221.24,9.52436963]
[1760001804513,0.68,221.29,221.23,20.8]
[1760001804514,135.1,221.28,221.23,20.8]
[1760001804722,140.78439368,221.27,221.2,5.66439368]
[1760001804920,135.1,221.26,221.21,5.00439368]
[1760001805107,135.1,221.25,221.2,5.66439368]
[1760001805315,0.98,221.24,221.19,5.10439368]
[1760001805499,5.30439368,221.24,221.19,0.1]
[1760001805700,0.68,221.23,221.19,0.1]
[1760001805901,4.52018261,221.23,221.19,0.1]
[1760001806101,5.30439368,221.24,221.2,5.18079566]
[1760001806102,0.3,221.24,221.2,5.18079566]
[1760001806314,0.3,221.24,221.23,5.00439368]
[1760001806821,0.68,221.3,221.23,5.00439368]
[1760001806822,0.68,221.3,221.23,5.66439368]
[1760001807031,0.68,221.3,221.26,5.00439368]
[1760001807347,0.3,221.31,221.27,5.00439368]
[1760001807500,0.68,221.3,221.27,5.00439368]
[1760001807699,0.68,221.3,221.26,5.00439368]
[1760001808100,5.1988339,221.3,221.26,5.00439368]
[1760001808305,0.68,221.29,221.23,0.66]
[1760001808614,5.00439368,221.28,221.21,5.00439368]
[1760001808818,0.68,221.27,221.2,5.00439368]
[1760001809222,0.68,221.26,221.2,5.00439368]
[1760001810029,4.51977401,221.25,221.21,20.8]
[1760001810204,5.19977401,221.25,221.21,20.8]
[1760001810414,135.1,221.24,221.23,20.8]
[1760001811838,135.1,221.24,221.23,5.66439368]
[1760001812345,135.1,221.24,221.23,5.00439368]
[1760001813930,135.1,221.24,221.23,2.15752921]
[1760001814126,135.1,221.24,221.23,28.13771182]
[1760001814329,135.1,221.24,221.23,7.33771182]
[1760001815438,134.8,221.24,221.23,7.33771182]
[1760001815830,134.8,221.24,221.23,28.13771182]
[1760001816548,5.19903904,221.29,221.23,22.95752921]
[1760001816721,0.68,221.28,221.23,20.8]
[1760001817214,135.48,221.27,221.21,6.67797053]
[1760001817836,139.9994212,221.27,221.21,6.67797053]
[1760001818043,139.9994212,221.27,221.21,2.15752921]
[1760001818246,0.68,221.26,221.2,2.15752921]
[1760001818450,0.68,221.26,221.19,4.62099275]
[1760001818648,2.83752921,221.26,221.19,4.62099275]
[1760001819024,0.68,221.26,221.2,2.15752921]
[1760001819731,0.68,221.26,221.22,4.52038694]
[1760001819928,139.31944187,221.27,221.22,2.15752921]
[1760001820129,135.48,221.27,221.22,2.15752921]
[1760001820328,135.48,221.27,221.24,2.15752921]
[1760001820329,0.3,221.26,221.24,2.15752921]
[1760001821031,0.3,221.26,221.23,2.15752921]
[1760001821230,5.49956973,221.26,221.21,20.8]
[1760001821426,5.49956973,221.26,221.21,23.61752921]
[1760001821622,0.68,221.25,221.19,0.1]
[1760001821841,5.19988011,221.25,221.19,6.77845865]
[1760001822051,0.68,221.25,221.19,6.77845865]
[1760001822545,0.3,221.26,221.21,2.15752921]
[1760001822846,0.3,221.26,221.22,0.66]
[1760001824132,0.3,221.26,221.21,6.67801506]
[1760001824446,0.3,221.26,221.22,0.67]
[1760001824746,0.3,221.26,221.23,0.67]
[1760001825244,0.3,221.25,221.23,0.67]
[1760001825427,0.3,221.24,221.23,2.15752921]
[1760001826043,0.3,221.24,221.23,2.82752921]
[1760001826244,0.3,221.24,221.2,4.52079566]
[1760001826549,0.3,221.24,221.2,5.19079566]
[1760001826745,0.3,221.24,221.2,4.52079566]
[1760001826953,0.96,221.24,221.2,4.52079566]
[1760001827258,0.96,221.23,221.19,0.1]
[1760001827442,0.3,221.22,221.19,4.62099497]
[1760001827762,0.66,221.21,221.19,0.1]
[1760001827928,0.66,221.2,221.19,0.1]
[1760001828251,10.87647521,221.19,221.12,0.1]
[1760001828454,27.35926002,221.2,221.12,0.1]
[1760001828455,2.15752921,221.15,221.12,0.1]
[1760001828624,10.87647521,221.17,221.12,0.1]
[1760001828824,2.15752921,221.13,221.12,0.1]
[1760001829039,0.66,221.16,221.12,0.1]
[1760001830155,0.66,221.16,221.12,4.62242054]
[1760001830363,5.17919686,221.28,221.15,25.81378268]
[1760001830541,5.17919686,221.28,221.23,5.01378268]
[1760001830852,0.66,221.27,221.24,5.01378268]
[1760001831326,0.66,221.27,221.23,5.01378268]
[1760001831654,5.17950393,221.27,221.23,5.01378268]
[1760001832032,0.66,221.26,221.22,5.01378268]
[1760001832250,0.66,221.25,221.22,5.01378268]
[1760001832845,5.17950393,221.27,221.22,5.01378268]
[1760001833130,0.66,221.26,221.22,5.01378268]
[1760001833334,0.66,221.26,221.23,5.01378268]
[1760001833542,0.66,221.26,221.19,5.19088659]
[1760001833543,0.66,221.25,221.16,11.97385578]
[1760001833761,5.01378268,221.22,221.13,0.67]
[1760001833944,5.67378268,221.22,221.15,5.01378268]
[1760001834139,0.66,221.22,221.16,5.01378268]
[1760001835229,0.66,221.22,221.17,5.01378268]
[1760001835431,0.71,221.21,221.17,5.01378268]
[1760001835881,0.71,221.21,221.17,3.40176252]
[1760001836050,4.52018261,221.23,221.17,7.9231135]
[1760001836251,5.03711142,221.37,221.2,20.8]
[1760001836449,0.71,221.32,221.27,3.40176252]
[1760001836635,0.71,221.31,221.26,3.40176252]
[1760001837029,0.71,221.3,221.26,3.40176252]
[1760001837476,5.22888241,221.3,221.26,3.40176252]
[1760001837842,0.71,221.29,221.24,3.40176252]
[1760001838049,0.71,221.28,221.23,3.40176252]
[1760001838366,0.71,221.27,221.23,3.40176252]
[1760001838737,0.71,221.27,221.2,20.8]
[1760001838738,0.71,221.26,221.18,0.65]
[1760001838936,0.71,221.26,221.22,3.40176252]
[1760001839164,0.71,221.26,221.23,3.40176252]
[1760001839367,5.22972028,221.26,221.22,3.40176252]
[1760001840062,5.22972028,221.26,221.2,3.40176252]
[1760001840570,5.22972028,221.26,221.21,4.52045449]
[1760001840869,5.22972028,221.26,221.21,7.92221701]
[1760001841162,4.51972028,221.26,221.21,7.92221701]
[1760001841373,4.51972028,221.26,221.21,8.57221701]
[1760001841670,135.1,221.25,221.22,0.65]
[1760001841970,135.1,221.25,221.23,0.65]
[1760001842169,135.1,221.25,221.24,0.65]
[1760001842876,135.1,221.25,221.24,4.05176252]
[1760001843664,135.1,221.25,221.24,8.57174082]
[1760001843871,0.3,221.33,221.24,23.2734491]
[1760001844175,0.3,221.33,221.32,3.40176252]
[1760001844662,0.3,221.33,221.31,3.40176252]
[1760001844884,1.01,221.33,221.27,20.8]
[1760001845034,0.3,221.32,221.24,5.1699783]
[1760001845236,3.40176252,221.31,221.24,4.05176252]
[1760001845439,3.40176252,221.29,221.21,0.65]
[1760001845641,4.51936548,221.27,221.21,4.05176252]
[1760001845866,135.1,221.26,221.2,3.40176252]
[1760001846078,135.1,221.26,221.19,7.92271213]
[1760001846374,135.1,221.25,221.19,28.72271213]
[1760001846544,135.1,221.25,221.19,7.92271213]
[1760001846946,135.1,221.25,221.19,28.72271213]
[1760001847466,135.1,221.25,221.19,24.20176252]
[1760001847671,0.3,221.24,221.19,28.72260094]
[1760001847834,135.81,221.23,221.14,4.52202224]
[1760001848040,3.40176252,221.2,221.13,7.92397364]
[1760001848239,0.3,221.19,221.13,7.92397364]
[1760001849177,4.82111444,221.19,221.12,0.75]
[1760001849364,4.41176252,221.18,221.12,0.1]
[1760001849569,3.40176252,221.16,221.12,0.1]
[1760001849764,3.40176252,221.14,221.12,0.1]
[1760001850064,4.11176252,221.14,221.12,0.1]
[1760001850269,4.11176252,221.16,221.12,0.1]
[1760001850466,0.71,221.15,221.12,0.1]
[1760001850883,3.40176252,221.16,221.12,0.1]
[1760001850884,0.71,221.14,221.12,0.1]
[1760001851583,4.52199488,221.15,221.12,0.1]
[1760001851757,0.71,221.13,221.12,0.1]
[1760001852963,4.11176252,221.13,221.12,0.1]
[1760001853268,19.51046447,221.13,221.12,0.1]
[1760001853793,16.10870195,221.13,221.12,0.1]
[1760001853994,0.71,221.13,221.12,0.1]
[1760001854176,10.87647521,221.16,221.12,0.1]
[1760001854499,5.23140887,221.17,221.12,3.50176252]
[1760001854660,4.52140887,221.17,221.12,3.50176252]
[1760001854861,0.71,221.16,221.12,3.50176252]
[1760001855084,135.81,221.15,221.12,0.1]
[1760001855292,140.33182739,221.15,221.12,0.1]
[1760001857105,135.1,221.15,221.12,0.1]
[1760001857424,140.331836,221.15,221.12,0.1]
[1760001857575,135.1,221.15,221.14,3.40176252]
[1760001857778,135.1,221.15,221.14,4.05176252]
[1760001858007,135.1,221.15,221.14,3.40176252]
[1760001858398,135.1,221.15,221.12,0.1]
[1760001858788,135.1,221.15,221.12,3.50176252]
[1760001859501,135.1,221.15,221.12,8.67417125]
[1760001860000,135.1,221.15,221.13,3.40176252]
[1760001860893,135.1,221.15,221.14,3.40176252]
[1760001861077,135.1,221.15,221.14,4.05176252]
[1760001861614,135.1,221.15,221.14,3.40176252]
[1760001863197,135.1,221.15,221.14,7.92378476]
[1760001863614,135.1,221.15,221.14,3.40176252]
[1760001863819,135.51,221.21,221.14,4.05176252]
[1760001864117,134.8,221.2,221.17,3.40176252]
[1760001864313,134.8,221.19,221.12,20.9]
[1760001864489,135.51,221.19,221.12,24.30176252]
[1760001864689,0.71,221.18,221.12,3.50176252]
[1760001865096,5.23135051,221.18,221.12,8.02410994]
[1760001866205,134.8,221.19,221.14,3.40176252]
[1760001866396,134.8,221.19,221.15,4.10176252]
[1760001866593,0.71,221.31,221.18,3.40176252]
[1760001866904,0.71,221.31,221.24,3.40176252]
[1760001867098,4.51895702,221.29,221.21,3.40176252]
[1760001867295,0.71,221.28,221.21,20.8]
[1760001867500,0.71,221.28,221.23,3.40176252]
[1760001867689,0.71,221.27,221.23,3.40176252]
[1760001867896,0.71,221.26,221.23,3.40176252]
[1760001869213,4.51951146,221.27,221.18,12.00301112]
[1760001869397,0.71,221.25,221.16,0.7]
[1760001869598,3.40176252,221.22,221.15,3.40176252]
[1760001869798,0.71,221.21,221.15,3.40176252]
[1760001870310,4.11176252,221.2,221.13,3.40176252]
[1760001870517,0.71,221.19,221.13,3.40176252]
[1760001871012,11.58647521,221.18,221.12,0.1]
[1760001871190,4.52140887,221.17,221.12,0.1]
[1760001871398,4.52140887,221.17,221.12,3.50176252]
[1760001871614,5.23140887,221.17,221.12,3.50176252]
[1760001872010,0.71,221.16,221.12,3.50176252]
[1760001872515,15.39769424,221.18,221.13,3.40176252]
[1760001872720,5.23121903,221.18,221.14,3.40176252]
[1760001873821,10.87647521,221.19,221.14,3.40176252]
[1760001874024,26.69940469,221.2,221.14,3.40176252]
[1760001874206,10.87647521,221.19,221.15,3.40176252]
[1760001874514,10.87647521,221.19,221.12,0.1]
[1760001874721,0.71,221.18,221.15,3.40176252]
[1760001874897,0.71,221.17,221.15,3.40176252]
[1760001875096,10.87647521,221.19,221.15,3.40176252]
[1760001875299,0.71,221.18,221.15,3.40176252]
[1760001875520,0.71,221.17,221.14,3.40176252]
[1760001875721,0.71,221.17,221.13,3.40176252]
[1760001875921,5.23155741,221.17,221.13,3.40176252]
[1760001876097,5.23155741,221.17,221.14,3.40176252]
[1760001877530,5.23155741,221.17,221.15,3.40176252]
[1760001877900,0.71,221.16,221.14,3.40176252]
[1760001878821,135.1,221.18,221.12,0.1]
[1760001879030,0.71,221.16,221.14,3.40176252]
[1760001880104,4.52149694,221.17,221.14,3.40176252]
[1760001880320,135.1,221.18,221.15,3.40176252]
[1760001880517,135.1,221.18,221.16,3.40176252]
[1760001880718,139.6212058,221.18,221.16,3.40176252]
[1760001880929,139.6212058,221.18,221.15,3.40176252]
[1760001881427,139.6212058,221.18,221.16,3.40176252]
[1760001881598,0.71,221.17,221.12,0.1]
[1760001881800,0.71,221.16,221.13,3.40176252]
[1760001882106,5.23167238,221.16,221.12,0.1]
[1760001882315,5.23167238,221.16,221.13,3.40176252]
[1760001882499,5.23167238,221.16,221.12,3.50176252]
[1760001882900,0.71,221.15,221.12,0.1]
[1760001883127,0.71,221.15,221.12,3.50176252]
[1760001883318,4.52167238,221.16,221.12,0.1]
[1760001883520,10.87647521,221.13,221.12,0.1]
[1760001884027,16.10870195,221.13,221.12,0.1]
[1760001884533,26.02179355,221.16,221.12,0.1]
[1760001884718,36.62582682,221.16,221.12,0.1]
[1760001884918,0.7,221.15,221.12,0.1]
[1760001885118,0.7,221.14,221.12,0.1]
[1760001885734,0.7,221.17,221.13,3.40176252]
[1760001886029,0.7,221.19,221.14,3.40176252]
[1760001886329,4.52091347,221.2,221.17,3.40176252]
[1760001886827,0.7,221.19,221.13,4.52219196]
[1760001887030,0.7,221.19,221.16,3.40176252]
[1760001887639,0.7,221.19,221.17,3.40176252]
[1760001887837,4.52059129,221.21,221.17,3.40176252]
[1760001888223,5.22059129,221.21,221.17,3.40176252]
[1760001888625,5.22059129,221.21,221.16,3.40176252]
[1760001889033,0.7,221.2,221.16,3.40176252]
[1760001889412,134.8,221.21,221.18,3.40176252]
[1760001889612,135.5,221.21,221.18,3.40176252]
[1760001889811,4.52079566,221.2,221.18,3.40176252]
[1760001891129,4.52079566,221.2,221.17,3.40176252]
[1760001891346,0.7,221.19,221.12,0.1]
[1760001891520,0.7,221.19,221.14,3.40176252]
[1760001891840,0.7,221.18,221.12,3.50176252]
[1760001892223,0.7,221.18,221.13,3.40176252]
[1760001892437,5.22079566,221.2,221.14,3.40176252]
[1760001892938,5.22079566,221.2,221.13,0.65]
[1760001893126,5.22079566,221.2,221.14,3.40176252]
[1760001893637,134.8,221.21,221.14,3.40176252]
[1760001893829,0.3,221.22,221.2,3.40176252]
[1760001894140,4.51854864,221.31,221.21,0.65]
[1760001894323,4.51854864,221.31,221.26,3.40176252]
[1760001894515,4.51854864,221.31,221.27,3.40176252]
[1760001894708,4.51854864,221.31,221.28,3.40176252]
[1760001894912,5.22278253,221.32,221.28,3.40176252]
[1760001895107,0.7,221.31,221.24,0.65]
[1760001895332,0.7,221.31,221.27,3.40176252]
[1760001895725,5.21868844,221.31,221.28,3.40176252]
[1760001895928,5.21868844,221.31,221.28,5.00682318]
[1760001896842,0.67,221.4,221.3,5.00682318]
[1760001897150,0.67,221.4,221.25,5.00682318]
[1760001897151,0.2,221.42,221.38,5.00682318]